Cogmind - Beta 11 X8 @@@ ROGUE MODE // 2021.10.25 @ 22:32:20 Player: Runia Result: Destroyed by DAS Turret with DAS Cannon Performance ------------- Evolutions (1) 500 Regions Visited (5) 1000 Robots Destroyed (102) 510 Value Destroyed (1989) 1989 Prototype IDs (5) 100 Alien Tech Used (0) 0 Bonus (-116) -116 TOTAL SCORE: 3983 Bonus ------- High Alert Combat Kills 107 Friendly Fire -223 Cogmind --------- Core Integrity 0/400 Matter 179/300 Energy 290/290 System Corruption 0% Temperature Cool (0) Movement Treading (320) Ox2 Location -9/Exiles Parts ------- > --- POWER (1) -------- Improved Deuterium Engine > --- PROPULSION (3) --- Improved Treads Armored Huge Wheel > --- UTILITY (3) ------ High-capacity Storage Unit Armor Integrity Analyzer Hardened Medium Armor Plating > --- WEAPON (2) ------- Heavy Assault Rifle Rocket Launcher > --- INVENTORY (20) --- Improved Treads Advanced Myomer Leg Experimental Heat Sink Medium Matter Pod (0) Medium Matter Pod (0) Gravity Neutralizing Apparatus Experimental Targeting Computer Advanced Weapon Cycler Hardened Medium Armor Plating Long-range Tractor Beam AS-neutralizer No. 17b 8R-AWN's Boregun Mini Grenade Launcher Peak State ------------ > --- POWER ------------ Improved Deuterium Engine > --- PROPULSION ------- Improved Treads Armored Huge Wheel > --- UTILITY ---------- High-capacity Storage Unit Armor Integrity Analyzer Hardened Medium Armor Plating > --- WEAPON ----------- Heavy Assault Rifle Rocket Launcher > --- INVENTORY -------- Improved Treads Advanced Myomer Leg Experimental Heat Sink Medium Matter Pod Medium Matter Pod Gravity Neutralizing Apparatus Experimental Targeting Computer Advanced Weapon Cycler Hardened Medium Armor Plating Long-range Tractor Beam AS-neutralizer No. 17b 8R-AWN's Boregun Mini Grenade Launcher [Rating: 30] Favorites ----------- Power Light Ion Engine Engine Light Ion Engine Propulsion Improved Treads Treads Improved Treads Leg Aluminum Leg Wheel Armored Huge Wheel Utility Large Storage Unit Device Heat Sink Storage Large Storage Unit Processor Salvage Targeting Computer Protection Hardened Medium Armor Plating Weapon Autogun Energy Gun Medium Laser Energy Cannon Particle Cannon Ballistic Gun Autogun Launcher Rocket Launcher Special Melee Weapon Datajack Build | -11 -10 -10 -9 -9 -9 ------- Run | Scr Mat Min Mat Min Exi Slots Evolved 2 | . . . 2 . . Power . | . . . . . . Propulsion 1 | . . . 1 . . Utility 1 | . . . 1 . . Weapon . | . . . . . . Parts Attached 89 | . 13 5 50 5 16 Power 8 | . . 1 6 1 . Engine 8 | . . 1 6 1 . Core . | . . . . . . Reactor . | . . . . . . Propulsion 15 | . 2 1 8 1 3 Treads 12 | . 2 1 7 . 2 Leg . | . . . . . . Wheel 3 | . . . 1 1 1 Hover . | . . . . . . Flight . | . . . . . . Utility 17 | . 2 . 10 . 5 Device 5 | . 1 . 4 . . Storage 2 | . 1 . . . 1 Processor 2 | . . . . . 2 Hackware . | . . . . . . Protection 8 | . . . 6 . 2 Artifact . | . . . . . . Weapon 49 | . 9 3 26 3 8 Energy Gun 7 | . 1 2 4 . . Energy Cannon 4 | . 4 . . . . Ballistic Gun 20 | . . . 14 2 4 Ballistic Cannon . | . . . . . . Launcher 16 | . 4 1 6 1 4 Special Weapon . | . . . . . . Impact Weapon . | . . . . . . Slashing Weapon . | . . . . . . Piercing Weapon . | . . . . . . Special Melee Weapon 2 | . . . 2 . . Unidentified Prototypes . | . . . . . . Parts Lost 10 | . . 1 2 . 7 Power 1 | . . 1 . . . Propulsion 1 | . . . . . 1 Utility 3 | . . . 1 . 2 Weapon 5 | . . . 1 . 4 Highest Loss Streak 6 | . . 1 1 . 6 Average Slot Usage (%) 96 | . 99 99 99 88 86 Engine 11 | . 14 13 11 11 11 Treads 23 | . 20 28 30 11 13 Leg 1 | . 7 . . . . Wheel 3 | . . . 2 11 8 Device 8 | . 13 14 10 . . Storage 11 | . 14 14 11 11 11 Processor 1 | . . . . . 7 Protection 9 | . . . 11 22 14 Energy Gun 6 | . 13 13 5 . . Energy Cannon 4 | . 11 14 1 . . Ballistic Gun 11 | . 2 . 14 19 17 Naked Turns . | . . . . . . Heaviest Build 72 | 11 31 30 48 52 72 Greatest Support 69 | 20 40 40 69 28 69 Greatest Overweight (x) 4 | . 1 . 3 4 2 Average Overweight (x) . | . . . . 1 1 Largest Inventory Capacity 20 | 8 15 15 15 15 20 Average Capacity 15 | 8 13 15 15 15 19 Most Carried 20 | 5 14 15 15 15 20 Average Carried 13 | 5 9 14 14 15 14 Final Capacity 20 | 8 15 15 15 15 20 Final Carried 15 | 4 14 15 15 15 13 Class Distribution -------------------- 89% | Mutant 10% | Scavenger-Mutant Dominant Class ---------------- Mutant | -10/Materials Mutant | -10/Mines Mutant | -9/Materials Mutant | -9/Mines Mutant | -9/Exiles Resources | -11 -10 -10 -9 -9 -9 ----------- Run | Scr Mat Min Mat Min Exi Matter Collected 2091 | 200 183 83 916 223 486 Remotely . | . . . . . . Salvage Created 3036 | . 595 409 1804 103 125 Parts 220 | . 53 30 122 7 8 Haulers Intercepted 7 | . 2 . 5 . . Recyclers Shooed 5 | . . 1 2 2 . Parts Field Recycled . | . . . . . . Retrieved Matter . | . . . . . . Parts Self-Destructed . | . . . . . . Prevented . | . . . . . . Kills | -11 -10 -10 -9 -9 -9 ------- Run | Scr Mat Min Mat Min Exi Combat Hostiles Destroyed 66 | . 12 10 36 3 5 Guns 24 | . . 1 22 . 1 Cannons 12 | . 4 4 4 . . AOE 30 | . 8 5 10 3 4 Classes Destroyed 14 | . 8 1 3 . 2 Worker 12 | . 3 2 7 . . Builder 2 | . 1 . 1 . . Tunneler 4 | . . 3 . 1 . Hauler 7 | . 2 . 5 . . Recycler 7 | . 1 1 4 1 . Operator 3 | . 2 . 1 . . Watcher 3 | . 2 . 1 . . Swarmer 25 | . 6 5 11 3 . Grunt 23 | . 6 5 12 . . Brawler 1 | . . . 1 . . Duelist 3 | . . . 3 . . Sentry 9 | . . . 9 . . Zionite 1 | . . . . . 1 Assembled 4 | . . . . . 4 Thug 1 | . . 1 . . . Best Kill Streak 6 | . 5 4 6 4 5 Combat Bots Only 5 | . 5 3 4 3 4 Max Kills in Single Turn 3 | . 3 3 3 3 3 Gunslinging . | . . . . . . Exploded 3 | . 3 2 2 2 2 Melee . | . . . . . . Uniques/NPCs Destroyed 1 | . . . . . 1 8R-AWN (-9/Exiles) Combat | -11 -10 -10 -9 -9 -9 -------- Run | Scr Mat Min Mat Min Exi Damage Taken 3445 | . 190 358 1167 26 1704 Core 492 | . 15 63 186 . 228 Absorbed by Shields . | . . . . . . Core Remaining (%) 84 | 100 . 68 . . . Volleys Fired 288 | . 38 45 134 8 63 Largest 2 | . 2 2 2 2 2 Hottest 118 | . 118 118 118 46 46 Shots Fired 495 | . 61 86 254 14 80 Gun 349 | . 26 41 212 12 58 Cannon 100 | . 29 41 30 . . Launcher 46 | . 6 4 12 2 22 Special . | . . . . . . Kinetic 216 | . 3 . 143 12 58 Thermal 220 | . 52 82 86 . . Explosive 46 | . 6 4 12 2 22 Electromagnetic 13 | . . . 13 . . Robot Hit Streak 18 | . 6 14 18 4 11 Robot Miss Streak 5 | . 2 4 5 2 4 Penetration Max . | . . . . . . Secondary Targets 1 | . . . 1 . . Max Gunslinging Chain 1 | . . . 1 . . Shots Hit Robots 303 | . 37 52 156 8 50 Core Hits 174 | . 27 27 85 8 27 Critical Kills . | . . . . . . Critical Parts Destroyed 1 | . . . 1 . . Critical Strikes 6 | . 3 1 2 . . Burn 5 | . 3 1 1 . . Destroy 1 | . . . 1 . . Melee Attacks 1 | . . . 1 . . Impact . | . . . . . . Slashing . | . . . . . . Piercing . | . . . . . . Sneak Attacks 1 | . . . 1 . . Combat Hostiles . | . . . . . . Follow-up Attacks . | . . . . . . Damage Inflicted 8079 | . 1179 1340 3736 324 1500 Guns 3077 | . 149 299 1801 91 737 Cannons 1354 | . 453 515 386 . . Explosions 3610 | . 566 526 1549 233 736 Melee . | . . . . . . Ramming 38 | . 11 . . . 27 Kinetic 2067 | . 10 . 1229 91 737 Thermal 2380 | . 592 917 871 . . Explosive 3507 | . 566 423 1549 233 736 Electromagnetic 87 | . . . 87 . . Impact . | . . . . . . Slashing . | . . . . . . Piercing . | . . . . . . Highest Corruption 1 | . 1 1 . . . Average Corruption 1 | . 1 1 . . . Corruption Purged . | . . . . . . Effects 4 | . 1 3 . . . Message Errors 1 | . 1 . . . . Energy Discharges 2 | . . 2 . . . Data Loss (minor) 1 | . . 1 . . . Overload Shots . | . . . . . . Overflow Damage 182 | . 68 20 47 16 31 Projectiles 23 | . 3 20 . . . Explosions 159 | . 65 . 47 16 31 Melee . | . . . . . . Knockbacks . | . . . . . . Impact . | . . . . . . Kinetic . | . . . . . . Secondary . | . . . . . . Self-Inflicted Damage 214 | . 22 60 28 . 104 Shots 8 | . 1 2 1 . 4 Rammed 8 | . 1 . . . 7 Targets Rammed 8 | . 1 . . . 7 Kicked . | . . . . . . Crushed . | . . . . . . Highest Temperature 297 | . 108 297 173 50 28 Average Temperature 43 | . 39 83 28 17 12 Received Heat Transfer 543 | . 42 114 369 . 18 Siege Activations . | . . . . . . Robots Corrupted . | . . . . . . Combat Hostiles . | . . . . . . Parts Fried . | . . . . . . Impact Corruptions . | . . . . . . Robots Melted . | . . . . . . Combat Hostiles . | . . . . . . Parts Melted 6 | . 2 2 2 . . Heat Transferred 5502 | . 1443 1987 2072 . . Parts Sabotaged . | . . . . . . Parts Stolen . | . . . . . . Parts Stripped . | . . . . . . Power Chain Reactions . | . . . . . . Missiles Intercepted . | . . . . . . Alert | -11 -10 -10 -9 -9 -9 ------- Run | Scr Mat Min Mat Min Exi Peak Influence 711 | . 286 337 711 357 . Initial 277 | . . 52 61 277 . Average 260 | . 170 169 310 337 . Maximum Alert Level 3 | . 1 1 3 1 . Low Security (%) 46 | 100 54 79 41 . . Level 1 33 | . 45 20 19 100 . Level 2 19 | . . . 36 . . Level 3 1 | . . . 2 . . Level 4 . | . . . . . . Level 5 . | . . . . . . High Security . | . . . . . . Max Security . | . . . . . . Squads Dispatched 6 | . 2 . 3 1 . Investigation 3 | . 2 . . 1 . Extermination . | . . . . . . Reinforcement 2 | . . . 2 . . Assault 1 | . . . 1 . . Garrison . | . . . . . . Intercept . | . . . . . . Construction Impeded . | . . . . . . Haulers Reinforced . | . . . . . . Active Scanning Responses . | . . . . . . Cargo Convoy Interrupts . | . . . . . . Stealth | -11 -10 -10 -9 -9 -9 --------- Run | Scr Mat Min Mat Min Exi Distress Signals 7 | . 2 . 5 . . Communications Jammed . | . . . . . . Distress Signals . | . . . . . . Times Spotted 114 | . 19 11 63 3 18 Peak Tracking Total 12 | . 5 3 6 3 12 Tactical Retreats 6 | . . 2 . . 4 Traps | -11 -10 -10 -9 -9 -9 ------- Run | Scr Mat Min Mat Min Exi Traps Triggered 2 | . 2 . . . . Indirectly . | . . . . . . Trap Hack Attempts 17 | . . . 17 . . Triggered . | . . . . . . Disarmed . | . . . . . . Reprogrammed 3 | . . . 3 . . Reused . | . . . . . . Traps Extracted 3 | . . . 3 . . Installed 3 | . . . . . 3 Triggered . | . . . . . . Exploded 3 | . . . . . 3 Machines | -11 -10 -10 -9 -9 -9 ---------- Run | Scr Mat Min Mat Min Exi Machines Disabled 16 | . 3 1 7 . 5 Max in Single Turn 2 | . 1 1 2 . 1 Machines Sabotaged . | . . . . . . Garrisons Compromised . | . . . . . . Overloaded Fab Kills . | . . . . . . Hacking | -11 -10 -10 -9 -9 -9 --------- Run | Scr Mat Min Mat Min Exi Machines Accessed 19 | . 8 . 9 1 1 Terminals 12 | . 6 . 6 . . Fabricators . | . . . . . . Repair Stations 1 | . . . 1 . . Recycling Units 2 | . 2 . . . . Scanalyzers 2 | . . . 2 . . Garrison Access . | . . . . . . Total Hacks 64 | . 21 . 41 1 1 Successful 44 | . 12 . 30 1 1 Failed 19 | . 9 . 10 . . Catastrophic 1 | . . . 1 . . Database Lockouts 1 | . . . 1 . . Manual 15 | . 3 . 12 . . Terminals 43 | . 18 . 25 . . Fabricators . | . . . . . . Repair Stations 2 | . . . 2 . . Recycling Units 3 | . 3 . . . . Scanalyzers 14 | . . . 14 . . Garrison Access . | . . . . . . Terminal Hacks 25 | . 9 . 14 1 1 Record 1 | . . . . . 1 Part Schematic 2 | . 1 . 1 . . Robot Analysis 1 | . . . 1 . . Prototype ID Bank 4 | . 2 . 2 . . Open Door 1 | . . . . 1 . Branch Access Points 1 | . . . 1 . . Emergency Access Points 1 | . . . 1 . . Terminal Index 1 | . . . 1 . . Alert Level 1 | . . . 1 . . Unreport Threat 2 | . . . 2 . . Locate Traps 1 | . 1 . . . . Hauler Manifests 4 | . 2 . 2 . . Registered Components 1 | . 1 . . . . Zone Layout 4 | . 2 . 2 . . Fabricator Hacks . | . . . . . . Repair Station Hacks 2 | . . . 2 . . Scan Component 1 | . . . 1 . . Repair 1 | . . . 1 . . Recycling Unit Hacks 2 | . 2 . . . . Process 1 | . 1 . . . . Report Inventory 1 | . 1 . . . . Scanalyzer 14 | . . . 14 . . Insert Component 7 | . . . 7 . . Analyze 7 | . . . 7 . . Garrison Access Hacks . | . . . . . . Unauthorized Hacks 1 | . 1 . . . . Terminals . | . . . . . . Fabricators . | . . . . . . Repair Stations . | . . . . . . Recycling Units 1 | . 1 . . . . Tunnel 1 | . 1 . . . . Scanalyzers . | . . . . . . Garrison Access . | . . . . . . Data Cores Recovered . | . . . . . . Used . | . . . . . . Hacking Detections 14 | . 6 . 8 . . Full Trace Events 1 | . 1 . . . . Feedback Events . | . . . . . . Feedback Blocked . | . . . . . . Robot Schematics Acquired . | . . . . . . Robots Built . | . . . . . . Authchips . | . . . . . . Time . | . . . . . . Total Robot Build Rating . | . . . . . . Part Schematics Acquired 9 | . 1 . 8 . . Parts Built . | . . . . . . Authchips . | . . . . . . Time . | . . . . . . Total Part Build Rating . | . . . . . . Parts Repaired 1 | . . . 1 . . Time 26 | . . . 26 . . Parts Recycled . | . . . . . . Recycled Matter 42 | . 42 . . . . Retrieved Matter . | . . . . . . Retrieved Components . | . . . . . . Parts Scanalyzed 7 | . . . 7 . . Part Schematics Acquired 7 | . . . 7 . . Parts Damaged . | . . . . . . Bothacking | -11 -10 -10 -9 -9 -9 ------------ Run | Scr Mat Min Mat Min Exi Used RIF Installer . | . . . . . . Robots Hacked 1 | . . . 1 . . Non-combat 1 | . . . 1 . . Combat . | . . . . . . Robot Hacks Applied 1 | . . . 1 . . find_recycling 1 | . . . 1 . . Relay Couplers Released . | . . . . . . Robots Rewired . | . . . . . . Allies Hacked . | . . . . . . Hacks Repelled . | . . . . . . Allies | -11 -10 -10 -9 -9 -9 -------- Run | Scr Mat Min Mat Min Exi Total Allies . | . . . . . . Largest Group . | . . . . . . Highest-Rated Group . | . . . . . . Highest-Rated Ally . | . . . . . . Total Orders . | . . . . . . Ally Attacks . | . . . . . . Total Damage . | . . . . . . Kills . | . . . . . . Allies Corrupted . | . . . . . . Allies Melted . | . . . . . . Intel | -11 -10 -10 -9 -9 -9 ------- Run | Scr Mat Min Mat Min Exi Robot Analysis Total 1 | . . . 1 . . Derelict Logs Recovered 2 | . . 1 . 1 . Drone Launches . | . . . . . . Drone Recoveries . | . . . . . . Exploration | -11 -10 -10 -9 -9 -9 ------------- Run | Scr Mat Min Mat Min Exi Turns Passed 4872 | 1 953 575 2143 383 817 Spaces Moved 2621 | 1 546 269 1037 303 465 Core . | . . . . . . Treads 1371 | . 382 269 702 . 18 Legs 165 | 1 164 . . . . Wheels 1085 | . . . 335 303 447 Hover . | . . . . . . Flight . | . . . . . . Fastest Speed 115 | 120 120 160 135 115 115 Average Speed 143 | 120 148 160 151 116 129 Slowest Speed 320 | 120 190 160 160 150 320 Overloaded Moves . | . . . . . . Propulsion Burnouts . | . . . . . . Robots Hopped . | . . . . . . Cave-ins Triggered . | . . . . . . Exploration Rate (%) 58 | 2 87 64 88 56 52 Regions Visited 5 Branch Regions 3 Pre-discovered Areas 2 | . 1 . . . 1 Known Exits Taken 1 | . . . 1 . . Unknown Exits Taken 4 | 1 1 1 . 1 . Scrap Searched 6 | . . 3 . 3 . Spaces Dug 7 | . 7 . . . . Terrain Destroyed 223 | . 36 48 76 18 45 Melee . | . . . . . . Projectile . | . . . . . . AOE 223 | . 36 48 76 18 45 Terrain Rammed . | . . . . . . Walls Destroyed . | . . . . . . Machines Disabled . | . . . . . . Actions | -11 -10 -10 -9 -9 -9 --------- Run | Scr Mat Min Mat Min Exi Total 3252 | 2 626 327 1377 321 599 Wait 112 | . 11 3 78 3 17 Move 2616 | . 545 268 1036 302 465 Hop . | . . . . . . Pick Up 52 | . 13 4 19 . 16 Fast Attach 8 | . 1 . 6 1 . Attach 17 | . 2 1 5 . 9 Detach 1 | . . . . . 1 Swap 64 | . 10 4 39 4 7 Drop 65 | 2 5 2 42 3 11 Fire 288 | . 38 45 134 8 63 Melee 1 | . . . 1 . . Ram . | . . . . . . Kick . | . . . . . . Crush 8 | . 1 . . . 7 Escape Stasis . | . . . . . . Rewire . | . . . . . . Trap 20 | . . . 17 . 3 Miscellaneous . | . . . . . . Route ------- -11/Scrapyard -10/Materials (discovered 4 exits: *Mat x2 / [*Min x2]) -10/Mines (discovered 2 exits: *Mat x2) -9/Materials (discovered 5 exits: [*Mat x3] / *Min x2) -9/Mines (discovered 2 exits: [*Mat] / *Exi) -9/Exiles (discovered 1 exit: [*Min]) History --------- Turn | Location | Event 2 | -11/Scrapyard | Discovered new exit (range 0) 2 | -11/Scrapyard | Entered Materials 123 | -10/Materials | Discovered new exit (range 16) 190 | -10/Materials | Discovered new exit (range 15) 312 | -10/Materials | Build established: Mutant 361 | -10/Materials | Discovered new exit (range 15) 411 | -10/Materials | Discovered new exit (range 12) 955 | -10/Materials | Entered Mines 1024 | -10/Mines | Discovered new exit (range 5) 1048 | -10/Mines | Met a Derelict bent on vengeance 1114 | -10/Mines | Excavation squad dispatched 1114 | -10/Mines | A large section of the Mines collapsed 1162 | -10/Mines | Received a Rocket Launcher from a helpful Derelict 1513 | -10/Mines | Discovered new exit (range 12) 1530 | -10/Mines | Entered Materials 1530 | -9/Materials | Evolved 2 slots: Propulsion x1, Utility x1 1841 | -9/Materials | Identified exit to Mines 1949 | -9/Materials | Build established: Scavenger-Mutant 2148 | -9/Materials | Repaired Lgt. Armor Plating 2555 | -9/Materials | Build established: Mutant 2561 | -9/Materials | Discovered new exit (range 12) 3086 | -9/Materials | Discovered new exit (range 11) 3368 | -9/Materials | Central database locked down 3524 | -9/Materials | Discovered new exit (range 14) 3530 | -9/Materials | First assault squad dispatched 3673 | -9/Materials | Entered Mines 3684 | -9/Mines | Met a Derelict shopkeep closing up shop 3881 | -9/Mines | Learned location of 1 exit from Proximity Caves 3905 | -9/Mines | Discovered new exit (range 9) 3991 | -9/Mines | Found a hidden stash of uninstalled traps 4016 | -9/Mines | A weapon hastily lodged in a ceiling crevice suddenly fell to the ground 4051 | -9/Mines | Deemed a non-threat by the Exiles lab entrance 4051 | -9/Mines | Discovered new exit (range 5) 4056 | -9/Mines | Entered Exiles 4088 | -9/Exiles | Met 8R-AWN 4104 | -9/Exiles | Met EX-HEX 4150 | -9/Exiles | Met EX-DEC 4155 | -9/Exiles | Learned location of Zion (-7) 4485 | -9/Exiles | Attacked by the Exiles 4589 | -9/Exiles | Core integrity fell below 50% 4685 | -9/Exiles | Core integrity fell below 20% 4708 | -9/Exiles | Destroyed 8R-AWN 4715 | -9/Exiles | Found Prototype Ballistic Gun 4723 | -9/Exiles | Lost 6 parts (1n2u3w) 4731 | -9/Exiles | Found Prototype Device 4735 | -9/Exiles | Found Prototype Processor 4792 | -9/Exiles | Discovered new exit (range 14) 4873 | -9/Exiles | Destroyed by DAS Turret with DAS Cannon Last Messages --------------- 04692_ Hvy. Assault Rifle destroyed. 04697_ HV Slug penetrates Earth. 04697_ Penetrated by HV Slug. 04705_ Critical hit (Destroy). 04708_ 8R-AWN destroyed. 04715_ Acquired Prototype Ballistic Gun. 04718_ The unstable cave ceiling collapses. 04721_ Acquired Prototype Device. 04724_ Acquired Prototype Leg. 04728_ Acquired Prototype Device. 04735_ Acquired Prototype Processor. 04736_ Acquired 120 matter. 04740_ Acquired Arm. Huge Wheel. 04747_ Acquired Adv. Weapon Cycler. 04792_ EXIT=FOUND 04859_ Dropped Med. Matter Pod. 04860_ Extracted 100 matter. 04860_ Dropped Med. Matter Pod. 04862_ Extracted 100 matter. 04863_ Acquired Med. Matter Pod. Map ----- +----------------------------------------------------+ | ?????????????????????????????????????????????????? | | ?????????????????????????????????????????????????? | | ?????????????????????????????????????????????????? | | ?????????????????????????????????????????????????? | | ?????????????????????????????????????????????????? | | ##???????????????????????????????????????????????? | | "????????????#######?????????????????????????????? | | #######??????# #?????????????????????????????? | | #""##?????# #?????????????????????????????? | | #?????# "#?##????????????????????????? | | ##??### "## #?????????####??????????? | | ####" " # #?????????? """?????????? | | #" ""#???????????" """#????????? | | " #"####????????"" #????????? | | "## ## ##???????"" #?????????" | | ###### ## #???????"" "#????????#" | | ?????### # ###?????? ""?????????#" | | #######" # # ######??" ""#???????##" | | !!""" # "?# ""???????##"" | | ! ## # # ##?### ###?######"" | | ! ^^^## ###X# #"###""""""" | | ! !## #" """""" " "" | | ! """"## ### "" """ " | | ############??## % " " | | ???????????????#### | | ??????????????????## @ | | ???????????????????### | | ?????????????????????## | | ??????????????????????## | | ???????????????????????# """""" | | ???????????????????????# ######" | | ???????????????????????#" ""##????## | | ???????????????????????#""" """##??????? | | ???????????????????????""" """##???????? | | ???????????????????????""" ""#????????? | | ????????????????????????" ##????????? | | ???????????????????????""" ?????????? | | ???????????????????????"" ????????? | | ????????????????????????"" t ???????? | | ????????????????????????"""" ??????? | | ?????????????????????????? ?????? | | ?????????????????????????? ???????? | | ????????????????????????????" ???????? | | ??????????????????????????????? ?????????? | | ????????????????????????????????? ???????????? | | ?????????????????????????????????????????????????? | | ?????????????????????????????????????????????????? | | ?????????????????????????????????????????????????? | | ?????????????????????????????????????????????????? | | ?????????????????????????????????????????????????? | +----------------------------------------------------+ Best States ------------- Heat Dissipation 42 Coolant Potential 50 Energy Generation 16 Energy Capacity 290 Matter Stores 300 Matter Capacity 300 Sight Range 16 Terrain Scan Density 10 Armor Coverage 450 Evasion (%) 55 Armor Integrity Analysis 20 Recoil Reduction 3 Salvage Targeting 1 Item Schematics ----------------- Hcp. Storage Unit | -10/Materials | Hacked Imp. Targeting Computer | -9/Materials | Hacked Trap Extractor | -9/Materials | Scanalyzed Hrd. Medium Armor Plating | -9/Materials | Scanalyzed Imp. Terrain Scanner | -9/Materials | Scanalyzed Imp. Treads | -9/Materials | Scanalyzed Hvy. Assault Rifle | -9/Materials | Scanalyzed Rocket Launcher | -9/Materials | Scanalyzed Grenade Launcher | -9/Materials | Scanalyzed Robot Schematics ------------------ None Fabricated ------------ Nothing Alien Tech Used ----------------- None Achievements -------------- None Challenges ------------ None Game ------ Seed LargeCoolingChainsword Manual? 0 Play Time 00:34:28 Cumulative 406.3 hours Start 2021.10.25 @ 22:02:23 End 2021.10.25 @ 22:32:20 Sessions 1 Manual Loads 0 Difficulty Rogue Special Mode None Game No. 416 Rogue 416 Adventurer 0 Explorer 0 Win Type - Total 7 Types 6/0/0/1/0/0/0/0/0 Lore% 79 Gallery% 91 Achievement% 69 Wizard Run 0 Options --------- ASCII 0 Keyboard 0 Movement Mouse Keybinds 1 Fullscreen 2 Font 24/Smallcaps Map View 76x50 Tactical HUD 1 Map Filters NONE Filters NONE Steam 1 RUN: d29259dd-2dbd-419f-b5da-7e75cea64fd9